bitfinex-derivatives/quotes_SOLF0:USTF0_20250426
["timestamp","ask_amount","ask_price","bid_price","bid_amount"]
[1745643915120,23.44,150.24,150.19,5.85265511]
[1745643915322,5.85265511,150.23,150.18,5.85265511]
[1745643916029,5.85265511,150.23,150.19,6.6554]
[1745643917129,5.85265511,150.22,150.14,23.44]
[1745643917332,5.85265511,150.22,150.18,5.85265511]
[1745643917631,5.85265511,150.23,150.19,5.85265511]
[1745643918133,5.85265511,150.23,150.18,5.85265511]
[1745643918334,5.85265511,150.22,150.19,6.6554]
[1745643919433,5.85265511,150.22,150.2,6.6549]
[1745643919631,12.50635511,150.23,150.2,6.6549]
[1745643920234,5.85265511,150.23,150.2,6.6549]
[1745643920937,12.50635511,150.23,150.19,12.50795511]
[1745643921136,29.29265511,150.24,150.2,5.85265511]
[1745643921435,29.29265511,150.24,150.21,6.6542]
[1745643922135,2.079,150.29,150.23,5.85265511]
[1745643922336,23.44,150.28,150.25,5.85265511]
[1745643922734,43.70904015,150.38,150.26,5.85265511]
[1745643922934,155.502411,150.41,150.37,5.85265511]
[1745643923134,92.79472071,150.41,150.39,5.85265511]
[1745643923631,92.79472071,150.41,150.36,9.19106319]
[1745643924841,92.79472071,150.41,150.38,9.19106319]
[1745643925138,155.502411,150.43,150.4,9.19106319]
[1745643925438,155.502411,150.43,150.42,9.19106319]
[1745643926128,23.44,150.46,150.42,9.19106319]
[1745643927638,23.44,150.46,150.4,9.19106319]
[1745643929539,23.44,150.46,150.39,23.44]
[1745643930041,6.644,150.45,150.39,23.44]
[1745643930639,9.19106319,150.45,150.36,32.63106319]
[1745643930843,9.19106319,150.43,150.34,9.19106319]
[1745643931139,6.6472,150.38,150.33,23.44]
[1745643931541,6.6472,150.38,150.32,9.19106319]
[1745643935440,23.44,150.39,150.3,511.71106319]
[1745643935645,23.44,150.39,150.3,32.63106319]
[1745643936244,6.6479,150.36,150.3,32.63106319]
[1745643937245,6.6475,150.37,150.3,32.63106319]
[1745643938243,6.6475,150.37,150.31,6.65]
[1745643939341,6.6479,150.36,150.31,6.65]
[1745643939652,27.5083,150.39,150.3,39.28146319]
[1745643939845,6.6487,150.35,150.3,39.28146319]
[1745643940447,36.69936319,150.39,150.3,32.63106319]
[1745643940947,6.6485,150.35,150.3,32.63106319]
[1745643941854,6.649,150.34,150.3,32.63106319]
[1745643942950,6.649,150.34,150.3,39.28156319]
[1745643944354,27.5083,150.39,150.3,32.63106319]
[1745643944544,27.5083,150.39,150.32,9.19106319]
[1745643944951,6.6477,150.37,150.32,15.84036319]
[1745643945152,27.5083,150.39,150.32,15.84036319]
[1745643945652,6.6475,150.37,150.32,15.84036319]
[1745643945851,27.5083,150.39,150.32,15.84036319]
[1745643946348,6.6475,150.37,150.32,15.84036319]
[1745643947248,27.5083,150.39,150.31,6.6499]
[1745643947455,36.69936319,150.39,150.3,32.63106319]
[1745643947756,6.649,150.34,150.3,32.63106319]
[1745643948352,36.69936319,150.39,150.3,32.63106319]
[1745643948353,6.6494,150.33,150.3,32.63106319]
[1745643948956,6.6489,150.34,150.3,32.63106319]
[1745643950054,36.69936319,150.39,150.3,23.44]
[1745643950853,6.6492,150.33,150.3,23.44]
[1745643951157,36.69936319,150.39,150.3,23.44]
[1745643951557,6.6492,150.33,150.3,23.44]
[1745643951853,6.6492,150.33,150.29,6.6508]
[1745643952257,6.6492,150.33,150.28,15.84236319]
[1745643952550,23.56,150.35,150.28,9.19106319]
[1745643952956,23.56,150.35,150.27,23.56]
[1745643952957,32.75106319,150.35,150.27,23.56]
[1745643953150,32.75106319,150.35,150.26,9.19106319]
[1745643953354,32.75106319,150.35,150.25,6.6524]
[1745643953553,32.75106319,150.35,150.25,9.19106319]
[1745643953862,32.75106319,150.35,150.26,6.6523]
[1745643954052,6.65,150.32,150.26,6.6523]
[1745643954360,32.75106319,150.35,150.26,6.6523]
[1745643955163,6.65,150.32,150.26,6.6523]
[1745643956363,6.65,150.32,150.27,6.6518]
[1745643956564,6.65,150.32,150.25,9.19106319]
[1745643957165,6.65,150.32,150.27,6.6515]
[1745643957966,6.6493,150.33,150.28,6.6514]
[1745643958267,23.56,150.35,150.24,23.56]
[1745643958268,23.56,150.35,150.27,9.19106319]
[1745643958569,6.6495,150.33,150.29,6.6507]
[1745643959070,6.6495,150.33,150.28,6.6512]
[1745643959468,6.6497,150.32,150.28,6.6512]
[1745643959869,32.75106319,150.35,150.27,6.6518]
[1745643960370,9.19106319,150.33,150.26,6.6521]
[1745643960571,6.6504,150.31,150.26,6.6521]
[1745643960772,3.8856,150.32,150.26,6.6521]
[1745643960970,32.75106319,150.31,150.24,23.56]
[1745643961270,6.6514,150.28,150.23,9.19106319]
[1745643961471,6.6514,150.28,150.23,6.6533]
[1745643961674,12.54456266,150.29,150.24,5.89346266]
[1745643961873,6.6511,150.29,150.25,5.89346266]
[1745643963277,6.6507,150.3,150.25,12.54606266]
[1745643963574,29.45346266,150.31,150.25,12.54606266]
[1745643963773,23.56,150.31,150.25,6.6526]
[1745643964469,6.651,150.29,150.25,6.6526]
[1745643964675,23.56,150.31,150.26,6.6522]
[1745643965074,6.6508,150.3,150.26,6.6522]
[1745643965275,23.56,150.31,150.25,6.6524]
[1745643965671,23.56,150.31,150.22,9.20599951]
[1745643965872,9.20599951,150.29,150.22,6.6538]
[1745643966077,9.20599951,150.29,150.21,23.56]
[1745643966278,6.6526,150.26,150.21,23.56]
[1745643966577,6.6526,150.26,150.22,6.654]
[1745643966877,23.58,150.27,150.22,6.654]
[1745643967072,30.232,150.27,150.22,6.654]
[1745643968076,30.232,150.27,150.23,6.6536]
[1745643968879,6.6523,150.26,150.22,6.6539]
[1745643969177,23.58,150.27,150.21,23.56]
[1745643969778,30.232,150.27,150.23,6.6533]
[1745643970876,23.58,150.27,150.24,6.6532]
[1745643971082,23.68,150.3,150.22,9.20599951]
[1745643971380,6.6517,150.28,150.23,6.6535]
[1745643971681,6.6517,150.28,150.22,9.20599951]
[1745643972280,6.6519,150.27,150.21,23.56]
[1745643972473,4.0121,150.26,150.21,23.56]
[1745643972670,10.6646,150.26,150.21,30.2144]
[1745643973078,4.0121,150.26,150.21,23.56]
[1745643973278,27.6921,150.26,150.2,15.86079951]
[1745643973580,6.653,150.25,150.2,15.86079951]
[1745643973782,6.653,150.25,150.2,6.6548]
[1745643974488,6.653,150.25,150.21,6.6545]
[1745643975188,6.653,150.25,150.2,6.6548]
[1745643975678,6.653,150.25,150.18,32.88599951]
[1745643975883,6.653,150.25,150.2,6.6546]
[1745643977287,6.653,150.25,150.21,6.6544]
[1745643977881,27.6921,150.26,150.22,6.6539]
[1745643978182,4.0121,150.26,150.22,6.6539]
[1745643978385,10.6647,150.26,150.21,6.6543]
[1745643978787,10.6647,150.26,150.2,9.20599951]
[1745643979290,4.0121,150.26,150.22,6.6538]
[1745643979688,4.0121,150.26,150.2,9.20599951]
[1745643979889,23.68,150.27,150.22,9.20599951]
[1745643980082,23.68,150.3,150.24,9.20599951]
[1745643980885,30.3309,150.3,150.26,6.652]
[1745643981188,30.3309,150.3,150.24,9.20599951]
[1745643981390,30.3309,150.3,150.25,6.6524]
[1745643981591,30.3309,150.3,150.24,9.20599951]
[1745643982291,23.68,150.3,150.27,6.6518]
[1745643982697,23.68,150.3,150.24,9.20599951]
[1745643983689,3.9808,150.31,150.27,5.89098865]
[1745643986394,3.9808,150.31,150.29,5.89098865]
[1745643986696,5.89098865,150.36,150.3,5.89098865]
[1745643986895,23.68,150.36,150.32,12.54028865]
[1745643987193,23.68,150.36,150.32,5.89098865]
[1745643987391,11.83628865,150.38,150.33,5.89098865]
[1745643987592,12.5924,150.38,150.34,12.53968865]
[1745643988196,5.9453,150.38,150.35,6.6482]
[1745643988895,5.9453,150.38,150.35,12.53918865]
[1745643989097,5.9453,150.38,150.35,5.89098865]
[1745643989596,5.9453,150.38,150.34,6.6487]
[1745643990298,12.5924,150.38,150.34,6.6487]
[1745643990793,12.5924,150.38,150.33,15.84468196]
[1745643990993,9.19568196,150.36,150.27,9.19568196]
[1745643991196,23.68,150.35,150.26,23.68]
[1745643991495,9.19568196,150.34,150.28,6.6511]
[1745643992099,9.19568196,150.34,150.26,23.68]
[1745643992497,6.6495,150.33,150.28,6.6511]
[1745643993099,30.3286,150.35,150.27,9.19568196]
[1745643993400,23.68,150.35,150.27,9.19568196]
[1745643993694,23.68,150.35,150.3,6.6502]
[1745643994594,30.3287,150.35,150.3,6.6502]
[1745643995599,23.68,150.35,150.29,9.19568196]
[1745643995798,23.68,150.35,150.31,9.19568196]
[1745643996000,29.6253,150.38,150.31,9.19568196]
[1745643996298,29.6253,150.38,150.34,6.6487]
[1745643996798,29.6253,150.38,150.35,6.6483]
[1745643997599,29.6253,150.38,150.34,6.6486]
[1745643998194,29.6253,150.38,150.35,6.6483]
[1745644001998,6.6462,150.4,150.33,9.19568196]
[1745644002403,6.6462,150.4,150.35,6.648]
[1745644004900,23.74,150.41,150.33,9.19568196]
[1745644005097,32.93568196,150.41,150.33,9.19568196]
[1745644005298,6.6469,150.39,150.33,9.19568196]
[1745644005498,23.74,150.41,150.33,9.19568196]
[1745644005701,23.74,150.41,150.35,9.19568196]
[1745644007103,23.74,150.41,150.38,6.6467]
[1745644007501,3.9858,150.42,150.38,6.6467]
[1745644007903,3.9858,150.42,150.37,9.19568196]
[1745644008506,3.9858,150.42,150.39,6.6463]
[1745644009704,3.9858,150.42,150.37,9.19568196]
[1745644010508,23.74,150.44,150.37,9.19568196]
[1745644010710,23.74,150.44,150.32,9.19568196]
[1745644010711,23.74,150.44,150.39,9.19568196]
[1745644011008,23.74,150.47,150.42,6.6449]
[1745644011209,6.1183,150.5,150.41,9.19568196]
[1745644011412,23.74,150.49,150.43,6.6446]
[1745644011601,30.3822,150.49,150.45,5.87709005]
[1745644012604,6.6426,150.48,150.45,5.87709005]
[1745644012808,23.74,150.49,150.45,5.87709005]
[1745644013107,30.3823,150.49,150.45,5.87709005]
[1745644013406,23.74,150.49,150.45,5.87709005]
[1745644013608,23.74,150.49,150.44,6.6441]
[1745644013609,30.3824,150.49,150.44,6.6441]
[1745644013806,30.3824,150.49,150.45,6.6439]
[1745644014105,1.15687643,150.55,150.47,9.18339834]
[1745644014309,27.5937,150.56,150.49,9.18339834]
[1745644014608,3.8737,150.56,150.51,9.18339834]
[1745644014811,23.72,150.58,150.52,23.72]
[1745644015007,5.8054,150.6,150.52,23.72]
[1745644015205,5.8054,150.6,150.54,6.6398]
[1745644015708,5.8054,150.6,150.53,6.6403]
[1745644016113,9.18339834,150.59,150.52,23.72]
[1745644016611,9.18339834,150.57,150.49,23.72]
[1745644016812,6.6394,150.56,150.49,30.362]
[1745644017909,39.54209834,150.57,150.5,6.6415]
[1745644018812,6.6391,150.56,150.5,6.6415]
[1745644019112,6.6391,150.56,150.49,30.362]
[1745644019713,6.6395,150.55,150.49,30.362]
[1745644020311,32.90339834,150.57,150.49,23.72]
[1745644020513,9.18339834,150.55,150.46,32.90339834]
[1745644020713,5.8833,150.54,150.46,32.90339834]
[1745644021513,12.5232,150.54,150.48,6.6425]
[1745644022013,12.5232,150.54,150.49,6.6421]
[1745644022313,12.5232,150.54,150.48,9.18339834]
[1745644022613,5.8833,150.54,150.48,9.18339834]
[1745644022811,5.8833,150.54,150.46,39.54649834]
[1745644023412,5.8833,150.54,150.46,32.90339834]
[1745644023813,6.6407,150.53,150.47,6.6429]
[1745644024016,5.8833,150.54,150.47,6.6429]
[1745644024514,6.6411,150.52,150.47,6.6429]
[1745644027615,6.6412,150.51,150.47,6.6429]
[1745644027816,5.8833,150.54,150.47,6.6429]
[1745644028114,5.8833,150.54,150.46,32.90339834]
[1745644028317,32.90339834,150.53,150.46,23.72]
[1745644028608,6.6429,150.48,150.44,9.18339834]
[1745644028814,23.72,150.49,150.4,9.18339834]
[1745644029013,3.8932,150.47,150.4,32.90339834]
[1745644029213,10.5363,150.47,150.4,32.90339834]
[1745644029513,3.8932,150.47,150.4,23.72]
[1745644029713,3.8932,150.47,150.43,6.6445]
[1745644029913,3.8932,150.47,150.42,9.18339834]
[1745644030614,3.8932,150.47,150.44,6.6443]
[1745644031416,3.8932,150.47,150.43,6.6446]
[1745644031816,3.8932,150.47,150.42,9.18339834]
[1745644032014,23.72,150.49,150.44,9.18339834]
[1745644032715,23.72,150.49,150.45,6.6439]
[1745644033615,23.72,150.49,150.46,5.87663247]
[1745644034815,5.87663247,150.52,150.47,5.87663247]
[1745644035008,29.59663247,150.52,150.48,5.87663247]
[1745644035209,29.59663247,150.52,150.44,23.72]
[1745644035413,6.6413,150.51,150.48,5.87663247]
[1745644035917,23.72,150.52,150.48,5.87663247]
[1745644036116,6.6413,150.51,150.48,5.87663247]
[1745644036615,6.6413,150.51,150.48,12.51923247]
[1745644036817,30.3609,150.52,150.48,5.87663247]
[1745644037317,23.72,150.52,150.49,5.87663247]
[1745644037513,23.72,150.52,150.5,5.87663247]
[1745644039520,23.72,150.54,150.5,5.87663247]
[1745644039724,30.3601,150.54,150.5,12.51803247]
[1745644039914,23.72,150.54,150.5,12.51803247]
[1745644040421,6.6406,150.53,150.5,5.87663247]
[1745644041522,30.36,150.54,150.5,12.51833247]
[1745644041917,5.9724,150.55,150.52,5.87663247]
[1745644042122,4.0141,150.55,150.54,5.87663247]
[1745644042522,23.72,150.57,150.54,5.87663247]
[1745644042725,23.72,150.57,150.56,5.87663247]
[1745644044825,23.72,150.57,150.54,5.87663247]
[1745644045125,30.3589,150.57,150.54,5.87663247]
[1745644045320,23.72,150.57,150.54,5.87663247]
[1745644046028,23.72,150.57,150.54,12.51623247]
[1745644047030,23.72,150.57,150.55,12.51603247]
[1745644047530,23.72,150.57,150.55,5.87663247]
[1745644049031,30.3587,150.57,150.55,5.87663247]
[1745644049927,6.6387,150.57,150.55,5.87663247]
[1745644050127,6.1894,150.6,150.56,5.87663247]
[1745644050333,6.1894,150.6,150.58,5.87663247]
[1745644050632,12.8267,150.6,150.58,5.87663247]
[1745644051230,23.72,150.59,150.5,6.6415]
[1745644051527,5.87663247,150.55,150.5,5.87663247]
[1745644051723,29.59663247,150.55,150.5,5.87663247]
[1745644051932,6.6402,150.54,150.5,5.87663247]
[1745644052534,6.6404,150.53,150.5,5.87663247]
[1745644052936,5.87663247,150.51,150.36,570.43753578]
[1745644053236,5.87663247,150.46,150.41,5.87663247]
[1745644053635,23.72,150.47,150.39,9.18872236]
[1745644053833,6.6436,150.46,150.4,6.6458]
[1745644054638,23.72,150.47,150.41,9.18872236]
[1745644054837,23.72,150.47,150.43,9.18872236]
[1745644055033,23.72,150.47,150.43,15.83342236]
[1745644055236,25.6481,150.5,150.43,15.83342236]
[1745644055839,6.6422,150.49,150.45,9.18872236]
[1745644056440,23.72,150.5,150.45,9.18872236]
[1745644056642,23.72,150.53,150.47,9.18872236]
[1745644058035,9.18872236,150.52,150.41,9.18872236]
[1745644058333,9.18872236,150.5,150.4,9.18872236]
[1745644058538,27.7809,150.49,150.4,9.18872236]
[1745644058736,6.6435,150.46,150.41,6.6453]
[1745644058941,11.25252236,150.48,150.39,23.8]
[1745644059140,6.6442,150.45,150.4,6.6458]
[1745644059340,6.6442,150.45,150.39,23.8]
[1745644059546,11.25252236,150.48,150.4,9.18872236]
[1745644059741,6.6433,150.47,150.42,6.6451]
[1745644060441,17.89542236,150.48,150.43,6.6447]
[1745644060642,8.7067,150.48,150.43,6.6447]
[1745644062050,2.0638,150.48,150.4,9.18872236]
[1745644062347,2.0638,150.48,150.42,9.18872236]
[1745644062543,27.7809,150.49,150.42,9.18872236]
[1745644062749,27.7809,150.49,150.45,6.6436]
[1745644063849,34.4231,150.49,150.45,6.6436]
[1745644064050,34.4231,150.49,150.44,6.6442]
[1745644064454,34.4231,150.49,150.42,9.18872236]
[1745644064752,6.643,150.48,150.42,9.18872236]
[1745644064951,27.7809,150.49,150.4,9.18872236]
[1745644065352,6.6433,150.47,150.42,6.6449]
[1745644065653,6.6433,150.47,150.4,9.18872236]
[1745644066052,6.6433,150.47,150.42,6.6449]
[1745644066451,6.6429,150.48,150.4,9.18872236]
[1745644066652,27.7809,150.49,150.43,6.6446]
[1745644067053,6.6427,150.48,150.43,6.6446]
[1745644067255,6.6427,150.48,150.44,6.6442]
[1745644067454,27.7809,150.49,150.44,6.6442]
[1745644067646,34.4233,150.49,150.44,6.6442]
[1745644067853,27.7809,150.49,150.44,6.6442]
[1745644069152,6.6426,150.48,150.44,6.6442]
[1745644069356,27.7809,150.49,150.42,9.18872236]
[1745644069553,23.8,150.49,150.42,9.18872236]
[1745644070156,23.8,150.49,150.45,6.6435]
[1745644071159,23.8,150.49,150.46,6.6434]
[1745644072157,25.7481,150.53,150.46,9.18872236]
[1745644072558,6.6412,150.52,150.47,6.6429]
[1745644073355,25.7481,150.53,150.47,6.6429]
[1745644074260,25.7481,150.53,150.46,9.18872236]
[1745644075755,6.6411,150.52,150.48,6.6422]
[1745644075965,25.7481,150.53,150.46,9.18872236]
[1745644076156,9.18872236,150.52,150.44,9.18872236]
[1745644076657,6.642,150.5,150.46,6.6432]
[1745644078257,6.6413,150.51,150.47,6.6428]
[1745644081359,25.7481,150.53,150.46,6.6434]
[1745644083370,6.6422,150.49,150.46,6.6434]
[1745644083872,6.6417,150.5,150.47,6.6429]
[1745644084069,25.7481,150.53,150.46,9.18872236]
[1745644084463,25.7481,150.53,150.47,6.6427]
[1745644085770,25.7481,150.53,150.46,9.18872236]
[1745644085974,6.6428,150.48,150.44,9.18872236]
[1745644087372,30.4422,150.49,150.45,6.6437]
[1745644087575,30.4422,150.49,150.44,9.18872236]
[1745644087873,30.4422,150.49,150.46,6.6434]
[1745644088074,30.4422,150.49,150.44,9.18872236]
[1745644088667,23.8,150.49,150.45,6.6438]
[1745644088872,6.6426,150.48,150.45,6.6438]
[1745644089473,6.6426,150.48,150.44,15.83302236]
[1745644089674,6.6426,150.48,150.44,6.6443]
[1745644091577,6.643,150.47,150.43,6.6447]
[1745644091771,4.0214,150.48,150.42,9.18872236]
[1745644092277,2.0785,150.47,150.4,32.98872236]
[1745644092776,6.6442,150.45,150.41,6.6453]
[1745644094179,6.6442,150.45,150.42,6.6452]
[1745644094374,6.6436,150.46,150.42,6.6452]
[1745644095182,9.18872236,150.44,150.36,9.18872236]
[1745644095371,9.18872236,150.44,150.34,32.84872236]
[1745644095571,6.6464,150.4,150.35,6.6483]
[1745644095874,6.6464,150.4,150.34,32.84872236]
[1745644096075,23.66,150.41,150.36,9.18872236]
[1745644096276,23.66,150.41,150.38,9.18872236]
[1745644096477,23.66,150.44,150.38,9.18872236]
[1745644096779,9.18872236,150.42,150.34,32.84872236]
[1745644096982,9.18872236,150.42,150.34,23.66]
[1745644097277,6.647,150.39,150.35,6.6483]
[1745644097673,6.647,150.38,150.35,6.6483]
[1745644098378,6.647,150.38,150.34,6.6486]
[1745644098981,6.6467,150.39,150.34,6.6486]
[1745644099184,6.6467,150.39,150.35,6.6481]
[1745644100077,23.66,150.4,150.35,6.6481]
[1745644100078,6.647,150.38,150.35,6.6481]
[1745644100980,6.6467,150.39,150.35,6.6481]
[1745644101980,6.647,150.38,150.35,6.6481]
[1745644102278,23.66,150.4,150.36,6.6478]
[1745644103278,6.6467,150.39,150.36,6.6478]
[1745644103481,6.6467,150.39,150.35,6.6481]
[1745644103880,6.6467,150.39,150.32,9.18872236]
[1745644105374,32.84872236,150.4,150.32,9.18872236]
[1745644105781,6.6473,150.38,150.32,9.18872236]
[1745644106082,32.84872236,150.4,150.32,9.18872236]
[1745644106583,6.6468,150.39,150.34,6.6484]
[1745644107283,6.647,150.38,150.34,6.6484]
[1745644108079,6.647,150.38,150.35,6.6483]
[1745644108278,6.6467,150.39,150.35,6.6483]
[1745644109285,6.6471,150.38,150.34,6.6487]
[1745644109583,32.84872236,150.4,150.3,32.84872236]
[1745644109783,12.53531508,150.37,150.32,12.53681508]
[1745644110183,6.6481,150.36,150.32,12.53681508]
[1745644110384,5.88751508,150.37,150.33,6.6491]
[1745644110784,12.53501508,150.37,150.33,6.6491]
[1745644111083,5.88751508,150.39,150.34,5.88751508]
[1745644111583,12.53431508,150.39,150.34,5.88751508]
[1745644111783,12.53431508,150.39,150.35,6.648]
[1745644115081,30.3061,150.4,150.37,6.6474]
[1745644115888,30.3061,150.4,150.36,12.53521508]
[1745644116483,6.6465,150.39,150.36,12.53521508]
[1745644117687,6.6465,150.39,150.36,5.88751508]
[1745644118488,6.6465,150.39,150.36,12.53531508]
[1745644120788,5.88751508,150.37,150.28,5.88751508]
[1745644120984,5.88751508,150.34,150.28,5.88751508]
[1745644121190,6.6495,150.33,150.29,6.6509]
[1745644121390,6.6495,150.33,150.28,5.88751508]
[1745644122188,6.6495,150.33,150.28,12.53881508]
[1745644122386,23.52,150.36,150.23,4.0813]
[1745644122387,5.88751508,150.29,150.23,4.0813]
[1745644122594,5.88751508,150.29,150.23,10.7349]
[1745644122788,5.88751508,150.29,150.24,5.88751508]
[1745644122987,6.6517,150.28,150.24,5.88751508]
[1745644123189,5.88751508,150.29,150.24,5.88751508]
[1745644123790,6.6519,150.27,150.24,5.88751508]
[1745644125190,6.6525,150.26,150.21,23.52]
[1745644125388,23.54,150.27,150.23,5.88751508]
[1745644125691,23.54,150.27,150.21,32.73018888]
[1745644126291,30.192,150.27,150.23,6.6536]
[1745644126990,23.54,150.27,150.23,6.6536]
[1745644127592,23.54,150.27,150.24,6.6531]
[1745644128590,23.54,150.27,150.23,6.6532]
[1745644129490,30.1919,150.27,150.23,6.6532]
[1745644129692,23.54,150.27,150.23,6.6532]
[1745644131393,23.54,150.27,150.23,9.21018888]
[1745644131896,23.54,150.3,150.23,9.21018888]
[1745644132393,30.1908,150.3,150.25,6.6524]
[1745644133497,6.651,150.29,150.25,6.6524]
[1745644133797,23.54,150.3,150.25,6.6524]
[1745644134096,30.1908,150.3,150.25,6.6524]
[1745644135097,32.75018888,150.3,150.23,6.6532]
[1745644136401,6.6519,150.27,150.23,6.6532]
[1745644138609,6.6515,150.28,150.24,6.6531]
[1745644139609,32.75018888,150.3,150.21,32.73018888]
[1745644141008,6.6517,150.28,150.24,6.6532]
[1745644142408,6.6519,150.27,150.24,6.6532]
[1745644142808,32.75018888,150.3,150.24,6.6532]
[1745644143011,32.75018888,150.3,150.21,32.73018888]
[1745644143310,32.75018888,150.3,150.23,9.21018888]
[1745644143512,6.6513,150.29,150.25,6.6524]
[1745644144715,6.6514,150.28,150.25,6.6524]
[1745644144908,6.6514,150.28,150.24,6.6531]
[1745644145512,6.6514,150.28,150.25,6.6527]
[1745644147513,6.6511,150.29,150.25,6.6527]
[1745644147713,12.54452424,150.29,150.25,12.54612424]
[1745644148213,6.6514,150.28,150.25,12.54612424]
[1745644150117,5.89342424,150.28,150.23,12.54672424]
[1745644150415,7.81522424,150.28,150.23,12.54672424]
[1745644150615,6.6521,150.27,150.23,12.54672424]
[1745644151517,6.6521,150.27,150.23,5.89342424]
[1745644152312,6.6521,150.27,150.23,12.54682424]
[1745644152517,29.57342424,150.26,150.21,5.89342424]
[1745644152913,6.6529,150.25,150.21,12.54762424]
[1745644156013,5.89342424,150.24,150.11,1.15855181]
[1745644156218,23.68,150.26,150.17,5.89342424]
[1745644156415,2.0353,150.23,150.2,5.89342424]
[1745644156720,6.6544,150.22,150.2,5.89342424]
[1745644156921,2.0353,150.23,150.2,5.89342424]
[1745644157421,8.6892,150.23,150.2,5.89342424]
[1745644158919,8.6892,150.23,150.2,12.54832424]
[1745644159120,2.0353,150.23,150.2,12.54832424]
[1745644160624,6.6533,150.24,150.2,12.54832424]
[1745644161222,23.68,150.25,150.21,5.89342424]
[1745644161425,23.68,150.25,150.23,5.89342424]
[1745644161921,10.5949,150.27,150.23,12.54672424]
[1745644162125,10.5949,150.27,150.24,5.89342424]
[1745644162322,32.2533,150.28,150.25,5.89342424]
[1745644162522,25.6018,150.28,150.26,5.89342424]
[1745644163523,6.6518,150.27,150.24,5.89342424]
[1745644164825,25.6018,150.28,150.23,5.89342424]
[1745644164826,6.6527,150.25,150.23,5.89342424]
[1745644165025,6.6527,150.25,150.22,5.89342424]
[1745644165928,6.6533,150.24,150.22,5.89342424]
[1745644166230,5.89342424,150.25,150.21,5.89342424]
[1745644166425,6.6533,150.24,150.21,5.89342424]
[1745644167531,6.6537,150.23,150.21,5.89342424]
[1745644170530,23.68,150.24,150.19,5.89342424]
[1745644170933,5.89342424,150.23,150.17,23.68]
[1745644171129,6.6548,150.21,150.18,5.89342424]
[1745644174430,6.6548,150.21,150.17,6.6562]
[1745644174733,6.655,150.2,150.17,12.54962424]
[1745644175132,6.6546,150.21,150.18,5.89342424]
[1745644176934,6.6546,150.21,150.17,6.6562]
[1745644177137,6.655,150.2,150.18,5.89342424]
[1745644177331,6.655,150.2,150.17,5.89342424]
[1745644177735,6.6547,150.21,150.17,12.54962424]
[1745644178037,5.89342424,150.22,150.18,5.89342424]
[1745644178230,6.6545,150.21,150.18,12.54902424]
[1745644178934,6.6542,150.22,150.18,12.54902424]
[1745644179137,6.6542,150.22,150.19,5.89342424]
[1745644179632,6.6538,150.23,150.2,5.89342424]
[1745644179835,1.9218,150.28,150.22,5.89342424]
[1745644180036,1.9218,150.28,150.26,5.89342424]
[1745644180228,1.9218,150.28,150.25,5.89342424]
[1745644180935,6.652,150.27,150.25,5.89342424]
[1745644181135,7.81522424,150.28,150.23,5.89342424]
[1745644182039,6.6519,150.27,150.23,12.54702424]
[1745644182337,6.6519,150.27,150.24,5.89342424]
[1745644182538,1.9218,150.28,150.24,5.89342424]
[1745644182739,8.5734,150.28,150.25,5.89342424]
[1745644183639,8.5734,150.28,150.24,12.54622424]
[1745644184039,6.6519,150.27,150.24,12.54622424]
[1745644184240,6.6519,150.27,150.23,12.54692424]
[1745644184834,6.6523,150.26,150.23,5.89342424]
[1745644185038,6.6523,150.26,150.22,12.54732424]
[1745644185243,5.89342424,150.26,150.21,5.89342424]
[1745644185441,6.6534,150.24,150.21,12.54762424]
[1745644185740,5.89342424,150.26,150.21,12.54762424]
[1745644186143,6.653,150.25,150.21,12.54762424]
[1745644186342,5.89342424,150.26,150.22,5.89342424]
[1745644186642,6.653,150.25,150.22,5.89342424]
[1745644187440,6.6532,150.24,150.22,5.89342424]
[1745644187741,6.6529,150.25,150.22,5.89342424]